bitfinex/quotes_ETHUSD_20250715
["timestamp","ask_amount","ask_price","bid_price","bid_amount"]
[1752547417017,0.46600001,2975.1,2975.0,5.465]
[1752547417392,0.46600001,2975.1,2975.0,0.168]
[1752547419227,1.27230001,2975.1,2974.8,4.92799998]
[1752547420004,1.27230001,2975.1,2974.8,8.28954881]
[1752547420426,0.80630001,2975.1,2975.0,3.36134453]
[1752547420626,0.80630001,2975.1,2974.9,3.52939696]
[1752547420832,0.80630001,2975.1,2974.9,5.88803665]
[1752547421189,0.80630001,2975.1,2975.0,3.36134453]
[1752547421533,1e-08,2975.1,2975.0,3.36134453]
[1752547422717,1e-08,2975.1,2975.0,13.85415797]
[1752547422932,1e-08,2975.1,2975.0,13.82054453]
[1752547423133,1e-08,2975.1,2975.0,16.40174774]
[1752547423911,1e-08,2975.1,2975.0,15.94254774]
[1752547427525,1e-08,2975.1,2975.0,12.58120321]
[1752547427711,0.7916,2975.0,2974.9,0.17]
[1752547427900,1.2441,2975.0,2974.9,0.002]
[1752547428818,4.60544453,2975.0,2974.9,0.002]
[1752547429337,1.2441,2975.0,2974.9,0.002]
[1752547429543,4.60544453,2975.0,2974.9,0.002]
[1752547429740,5.08278346,2975.0,2974.9,0.002]
[1752547434156,10.37478346,2975.0,2974.9,0.002]
[1752547434860,0.7916,2975.0,2974.9,0.002]
[1752547435355,1.2441,2975.0,2974.9,0.002]
[1752547435525,4.60544453,2975.0,2974.9,0.002]
[1752547437058,4.15294453,2975.0,2974.9,0.002]
[1752547437458,0.7916,2975.0,2974.9,0.002]
[1752547439464,1e-08,2975.1,2975.0,3.36134453]
[1752547440216,1e-08,2975.1,2975.0,4.55575257]
[1752547440339,1e-08,2975.1,2975.0,15.52065257]
[1752547440531,1e-08,2975.1,2975.0,20.83065255]
[1752547441446,1e-08,2975.1,2975.0,26.12065255]
[1752547443774,1e-08,2975.1,2975.0,25.57065255]
[1752547444078,1e-08,2975.1,2975.0,19.82145255]
[1752547444286,1e-08,2975.1,2975.0,24.31355255]
[1752547444767,1e-08,2975.1,2975.0,14.92799998]
[1752547445579,1e-08,2975.1,2975.0,10.168]
[1752547445887,0.001,2975.8,2975.7,14.16525381]
[1752547446374,0.001,2975.8,2975.7,14.93849423]
[1752547448750,0.001,2975.8,2975.7,15.18890586]
[1752547449071,0.001,2975.8,2975.7,17.57266277]
[1752547450453,0.001,2975.8,2975.7,17.57223059]
[1752547451510,0.001,2975.8,2975.7,22.33223057]
[1752547452567,0.001,2975.8,2975.7,22.85723059]
[1752547453293,0.001,2975.8,2975.7,17.57223059]
[1752547453491,0.001,2975.8,2975.7,22.85623059]
[1752547455559,0.001,2975.8,2975.7,17.57223059]
[1752547455804,0.001,2975.8,2975.7,23.02423059]
[1752547456161,0.001,2975.8,2975.7,17.74023059]
[1752547456381,0.001,2975.8,2975.7,23.02323059]
[1752547457423,0.001,2975.8,2975.7,27.78323057]
[1752547457962,0.001,2975.8,2975.7,7.62536513]
[1752547458169,1.4557,2975.8,2975.7,0.31360824]
[1752547458614,1.4557,2975.8,2975.4,13.36084767]
[1752547458996,0.9926,2975.8,2975.3,10.168]
[1752547459394,0.9926,2975.8,2975.3,13.52895818]
[1752547459783,4.35306375,2975.8,2975.3,10.168]
[1752547460085,0.9926,2975.8,2975.3,13.52894436]
[1752547460805,4.35308274,2975.8,2975.3,13.52894436]
[1752547461115,0.9926,2975.8,2975.4,3.80073963]
[1752547461993,0.9926,2975.8,2975.4,0.4399]
[1752547462199,0.9926,2975.8,2975.3,10.168]
[1752547462505,0.9926,2975.8,2975.3,10.6079]
[1752547462727,3.36061137,2975.7,2975.3,10.168]
[1752547463001,0.4631,2975.6,2975.3,10.168]
[1752547463323,3.36066894,2975.6,2975.3,0.168]
[1752547463623,0.9926,2975.8,2975.3,0.168]
[1752547463820,3.36089265,2975.4,2974.9,0.002]
[1752547464038,3.52883622,2975.5,2975.0,0.17]
[1752547464338,3.36073108,2975.6,2975.0,3.83680805]
[1752547464540,3.36078878,2975.5,2975.2,0.168]
[1752547464915,3.36071791,2975.6,2975.2,0.168]
[1752547465847,3.36071791,2975.6,2975.2,0.6079]
[1752547466341,3.3607861,2975.5,2975.2,0.6079]
[1752547466800,3.36067283,2975.6,2975.2,0.168]
[1752547466999,3.36091792,2975.4,2975.2,0.168]
[1752547467244,3.36082549,2975.5,2975.2,0.168]
[1752547467608,3.36072257,2975.6,2975.2,0.168]
[1752547467931,3.36090417,2975.4,2975.2,0.168]
[1752547468131,3.82391924,2975.5,2975.2,0.168]
[1752547468321,4.22293617,2975.6,2975.2,0.168]
[1752547468510,3.36070622,2975.6,2975.2,0.168]
[1752547468710,3.36079832,2975.5,2975.2,0.6079]
[1752547469156,3.36106256,2975.3,2975.0,0.002]
[1752547469351,0.7915,2975.3,2975.0,0.17]
[1752547469647,0.7915,2975.3,2975.0,0.6099]
[1752547470023,0.001,2975.8,2975.1,1.2453]
[1752547470258,5.28,2975.8,2975.4,0.168]
[1752547470429,5.28,2975.8,2975.4,0.6079]
[1752547471239,5.28,2975.8,2975.5,3.3607797]
[1752547471443,5.28,2975.8,2975.6,3.36065627]
[1752547471754,5.28,2975.8,2975.5,3.36069996]
[1752547471916,5.28,2975.8,2975.6,3.36066653]
[1752547472348,0.001,2975.8,2975.7,3.36055381]
[1752547472515,0.001,2975.8,2975.7,4.30450919]
[1752547472710,0.001,2975.8,2975.7,3.89821472]
[1752547473058,0.001,2975.8,2975.7,5.14351472]
[1752547475539,0.001,2975.8,2975.7,5.10990919]
[1752547476021,0.001,2975.8,2975.7,5.14351472]
[1752547476822,0.001,2975.8,2975.7,15.14351472]
[1752547477029,0.001,2975.8,2975.7,15.10990919]
[1752547477234,0.001,2975.8,2975.7,13.86460919]
[1752547481382,0.001,2975.8,2975.7,14.30430919]
[1752547483933,0.001,2975.8,2975.7,13.86460919]
[1752547485461,0.001,2975.8,2975.7,14.30430919]
[1752547486874,0.001,2975.8,2975.7,4.30430919]
[1752547488942,0.001,2975.8,2975.7,3.86460919]
[1752547489143,0.001,2975.8,2975.7,3.52855381]
[1752547489843,0.001,2975.8,2975.6,4.75999998]
[1752547490070,0.001,2975.8,2975.7,3.36055381]
[1752547490382,0.001,2975.8,2975.6,8.28860922]
[1752547490878,0.001,2975.8,2975.7,3.36055381]
[1752547493577,5.272,2975.8,2975.7,3.36055381]
[1752547493852,5.272,2975.8,2975.7,4.2174754]
[1752547494495,5.272,2975.8,2975.7,3.52855381]
[1752547494851,0.7945,2975.7,2975.5,3.36075976]
[1752547495186,0.7945,2975.7,2975.5,3.52875976]
[1752547495364,0.7945,2975.7,2975.5,0.168]
[1752547495990,1.261,2975.7,2975.5,0.168]
[1752547496152,1.261,2975.7,2975.3,3.52897914]
[1752547496353,0.7945,2975.7,2975.3,3.52899854]
[1752547496599,0.7945,2975.7,2975.3,3.96869854]
[1752547496799,0.7945,2975.7,2975.3,0.6077]
[1752547497589,0.7945,2975.7,2975.3,3.96865131]
[1752547497805,5.44,2975.8,2975.4,6.94284799]
[1752547497987,5.44,2975.8,2975.5,3.3607028]
[1752547499403,5.44,2975.8,2975.4,0.4397]
[1752547499689,8.80045924,2975.8,2975.4,0.4397]
[1752547499891,5.44,2975.8,2975.4,0.4397]
[1752547500335,5.272,2975.8,2975.5,9.86383122]
[1752547500615,8.6325139,2975.8,2975.4,0.6077]
[1752547500758,5.272,2975.8,2975.4,0.6077]
[1752547500959,3.36057204,2975.7,2975.4,0.6077]
[1752547501260,8.63247126,2975.8,2975.4,0.6077]
[1752547501656,3.82715362,2975.7,2975.0,0.002]
[1752547501894,0.168,2975.3,2975.0,0.002]
[1752547502092,5.267,2975.3,2975.2,0.168]
[1752547502817,5.267,2975.3,2975.2,3.96881858]
[1752547503107,0.001,2975.8,2975.2,0.47331118]
[1752547503108,5.268,2975.8,2975.2,0.47331118]
[1752547503272,5.267,2975.7,2975.5,6.50314799]
[1752547503596,4.86376753,2975.7,2975.6,3.6749906]
[1752547503986,4.86376753,2975.7,2975.6,4.1146906]
[1752547504188,0.001,2975.8,2975.7,3.36055381]
[1752547504390,0.001,2975.8,2975.7,0.31439721]
[1752547504762,0.4675,2975.8,2975.7,0.31439721]
[1752547504962,3.82794088,2975.8,2975.7,0.31439721]
[1752547505379,4.61934088,2975.8,2975.7,0.31439721]
[1752547505889,4.15284088,2975.8,2975.7,0.31439721]
[1752547506078,4.61934088,2975.8,2975.7,0.31439721]
[1752547510184,14.61934088,2975.8,2975.7,0.31439721]
[1752547510387,4.16853155,2975.1,2975.0,0.002]
[1752547510641,9.43353155,2975.1,2975.0,0.002]
[1752547510782,9.88113155,2975.1,2975.0,0.002]
[1752547513108,20.43113155,2975.1,2975.0,0.002]
[1752547513331,14.89474453,2975.0,2974.9,0.002]
[1752547513630,21.84549252,2975.0,2974.9,0.002]
[1752547515432,4.17389654,2974.6,2974.5,0.002]
[1752547515636,10.19145481,2974.6,2974.5,0.002]
[1752547516133,10.63905481,2974.6,2974.5,0.002]
[1752547516315,20.63905481,2974.6,2974.5,0.002]
[1752547516513,15.37505481,2974.6,2974.5,0.002]
[1752547516715,9.43789654,2974.6,2974.5,0.002]
[1752547516918,9.88549654,2974.6,2974.5,0.002]
[1752547520324,9.88449654,2974.6,2974.5,0.002]
[1752547520868,4.62149654,2974.6,2974.5,0.002]
[1752547521078,9.88449654,2974.6,2974.5,0.002]
[1752547521273,0.7541,2975.2,2974.5,0.4396]
[1752547521569,5.263,2975.1,2974.6,4.05599076]
[1752547521733,0.168,2975.0,2974.6,4.49359076]
[1752547521934,5.263,2974.9,2974.7,3.36166382]
[1752547522173,5.263,2974.9,2974.6,4.49362886]
[1752547522378,5.263,2974.9,2974.7,0.31263959]
[1752547522576,5.263,2974.9,2974.8,0.31263959]
[1752547526177,0.168,2975.0,2974.8,0.31263959]
[1752547526385,0.7541,2975.2,2975.0,3.36131325]
[1752547526693,5.261,2975.1,2975.0,3.36131325]
[1752547526888,5.261,2975.1,2975.0,3.67390699]
[1752547527070,5.261,2975.1,2975.0,0.75019374]
[1752547527442,5.261,2975.1,2975.0,4.11153827]
[1752547528598,5.261,2975.1,2975.0,0.4376]
[1752547528772,5.261,2975.1,2975.0,0.75031256]
[1752547528973,5.261,2975.1,2975.0,0.31271256]
[1752547529297,6.0286,2975.1,2975.0,0.31271256]
[1752547529682,5.261,2975.1,2975.0,0.31471256]
[1752547530397,9.06983155,2975.1,2975.0,0.31471256]
[1752547530600,6.69688316,2975.1,2975.0,0.31471256]
[1752547531100,18.064,2975.6,2975.0,4.11357601]
[1752547531311,0.168,2975.3,2975.1,0.31271256]
[1752547531470,5.259,2975.2,2975.0,0.4396]
[1752547531670,5.259,2975.2,2975.1,0.31303611]
[1752547532866,0.168,2975.3,2975.1,0.31303611]
[1752547533179,0.168,2975.3,2975.2,0.31303611]
[1752547533388,5.427,2975.3,2975.2,0.31303611]
[1752547533588,10.03080561,2975.3,2975.2,0.31303611]
[1752547533902,3.3611287,2975.2,2975.0,0.002]
[1752547534072,5.259,2975.1,2975.0,0.002]
[1752547534901,5.258,2975.1,2975.0,0.4396]
[1752547535302,5.258,2975.1,2975.0,0.002]
[1752547537016,5.258,2975.1,2975.0,3.36334453]
[1752547537217,0.168,2975.2,2975.0,3.36334453]
[1752547537520,5.257,2975.1,2975.0,0.4396]
[1752547538324,0.168,2975.2,2975.0,3.80094453]
[1752547538526,5.257,2975.1,2975.0,3.80094453]
[1752547538827,5.257,2975.1,2975.0,0.002]
[1752547538994,5.257,2975.1,2975.0,3.36334453]
[1752547539194,0.168,2975.2,2975.0,3.36334453]
[1752547539396,5.257,2975.1,2975.0,3.36334453]
[1752547540327,0.8149,2975.5,2975.2,3.36110262]
[1752547540629,5.256,2975.4,2975.2,3.83240262]
[1752547540830,5.256,2975.4,2975.0,9.86645082]
[1752547540831,0.001,2975.7,2975.3,7.73004799]
[1752547541033,0.001,2975.7,2975.6,10.61941474]
[1752547541202,0.001,2975.7,2975.6,12.06456332]
[1752547541405,0.001,2975.7,2975.6,12.70386332]
[1752547541605,0.001,2975.7,2975.6,12.95920347]
[1752547542987,0.001,2975.7,2975.6,6.45605548]
[1752547543748,0.001,2975.7,2975.6,6.20071533]
[1752547544451,0.001,2975.7,2975.6,4.75556675]
[1752547544837,0.001,2975.7,2975.6,1.3949]
[1752547545145,0.001,2975.7,2975.6,0.168]
[1752547545346,0.001,2975.7,2975.6,0.4713]
[1752547545595,0.001,2975.7,2975.6,3.83196675]
[1752547545931,0.001,2975.7,2975.5,0.168]
[1752547546126,5.253,2975.6,2975.2,0.4713]
[1752547546343,5.253,2975.6,2975.5,3.3607797]
[1752547546563,5.253,2975.6,2975.5,3.5287797]
[1752547546777,5.253,2975.6,2975.5,4.0000797]
[1752547546977,5.253,2975.6,2975.5,4.8072797]
[1752547547184,0.001,2975.7,2975.6,3.36066675]
[1752547547481,0.001,2975.7,2975.6,3.86557341]
[1752547547890,0.001,2975.7,2975.6,4.03357341]
[1752547548349,1e-08,2975.7,2975.6,14.78537341]
[1752547548556,1e-08,2975.7,2975.6,14.75176675]
[1752547548863,1e-08,2975.7,2975.6,17.99973271]
[1752547551563,1e-08,2975.7,2975.6,18.54973271]
[1752547552085,1e-08,2975.7,2975.6,28.56073269]
[1752547553069,1e-08,2975.7,2975.6,28.01073269]
[1752547556995,1e-08,2975.7,2975.6,28.56073269]
[1752547558155,1e-08,2975.7,2975.6,22.75973269]
[1752547558363,1e-08,2975.7,2975.6,28.00873269]
[1752547558774,1e-08,2975.7,2975.6,28.00773269]
[1752547561599,1e-08,2975.7,2975.6,22.75973269]
[1752547561798,1e-08,2975.7,2975.6,28.00773269]
[1752547562006,1e-08,2975.7,2975.6,22.75973269]
[1752547563002,1e-08,2975.7,2975.6,28.00673269]
[1752547563372,1e-08,2975.7,2975.6,22.75973269]
[1752547563571,1e-08,2975.7,2975.6,28.00673269]
[1752547563772,1e-08,2975.7,2975.6,23.24673271]
[1752547564275,1e-08,2975.7,2975.6,23.55996694]
[1752547566419,1e-08,2975.7,2975.6,24.10996694]
[1752547566916,0.09766333,2975.9,2975.8,13.36044088]
[1752547567104,0.09766333,2975.9,2975.8,22.16764107]
[1752547567306,0.09766333,2975.9,2975.8,22.80694107]
[1752547567678,0.09766333,2975.9,2975.8,23.61434107]
[1752547568613,0.001,2976.3,2976.2,13.35998924]
[1752547568821,0.001,2976.3,2976.2,26.28492272]
[1752547569196,0.001,2976.3,2976.2,26.75622272]
[1752547569824,0.001,2976.9,2976.8,3.35931201]
[1752547570122,0.001,2976.9,2976.8,3.67313746]
[1752547570419,0.001,2976.9,2976.8,3.87393058]
[1752547571720,0.001,2976.9,2976.8,3.87412097]
[1752547572419,0.001,2976.9,2976.8,4.53806813]
[1752547574535,0.001,2976.9,2976.8,4.50447501]
[1752547574828,0.001,2976.9,2976.8,3.84031166]
[1752547575525,0.001,2976.9,2976.8,3.87390478]
[1752547576898,0.001,2976.9,2976.8,3.84031166]
[1752547577731,1.2571,2976.9,2976.8,0.31379965]
[1752547579107,0.001,2976.9,2976.8,3.67311166]
[1752547579301,0.04,2977.9,2977.0,3.35908632]
[1752547579638,0.04,2977.9,2977.8,13.35818389]
[1752547579835,0.04,2977.9,2977.8,20.66176137]
[1752547579998,0.04,2977.9,2977.8,21.28256137]
[1752547580200,0.8215,2978.5,2978.4,3.35750738]
[1752547580565,0.8215,2978.5,2978.4,0.31360263]
[1752547580738,1.2747,2978.5,2978.4,0.31360263]
[1752547581036,5.11200207,2978.5,2978.4,0.31360263]
[1752547581207,1.92180741,2978.5,2978.4,0.31360263]
[1752547581838,1.46860741,2978.5,2978.4,0.31360263]
[1752547582038,0.7877,2978.7,2978.4,3.67111001]
[1752547582337,0.7877,2978.7,2978.5,0.31360263]
[1752547582496,4.14486923,2978.7,2978.6,0.31360263]
[1752547582698,0.7877,2978.7,2978.6,0.31360263]
[1752547583034,4.59806923,2978.7,2978.6,0.31360263]
[1752547583235,5.07859615,2978.7,2978.6,0.31360263]
[1752547583420,3.35729376,2978.6,2978.3,0.1672]
[1752547583627,0.4532,2978.6,2978.4,0.3125781]
[1752547583804,4.62543845,2978.7,2978.3,0.1672]
[1752547583805,1.26822692,2978.7,2978.5,0.3125781]
[1752547584000,6.0267,2978.7,2978.6,0.3125781]
[1752547584416,9.83706923,2978.7,2978.6,0.3125781]
[1752547587761,9.38286923,2978.7,2978.6,0.3125781]
[1752547588320,0.04,2978.9,2978.6,0.3125781]
[1752547588537,0.04,2978.9,2978.7,0.4797781]
[1752547588853,0.04,2978.9,2978.8,3.66963463]
[1752547589154,0.04,2978.9,2978.8,3.66902784]
[1752547590155,0.04,2978.9,2978.8,0.31197131]
[1752547590451,0.04,2978.9,2978.8,3.66902784]
[1752547590955,0.04,2978.9,2978.8,4.88733059]
[1752547592063,0.04,2978.9,2978.8,4.88708959]
[1752547592840,0.04,2978.9,2978.8,4.92066015]
[1752547593159,0.04,2978.9,2978.8,15.72386015]
[1752547593338,0.04,2978.9,2978.8,15.69028959]
[1752547593842,0.04,2978.9,2978.8,1.07643306]
[1752547594165,0.04,2978.9,2978.8,3.66878684]
[1752547594365,0.04,2978.9,2978.8,0.31173031]
[1752547594568,0.04,2978.9,2978.8,0.31167186]
[1752547595830,4.63154383,2978.9,2978.8,0.31167186]
[1752547596035,9.86654383,2978.9,2978.8,0.31167186]
[1752547597666,4.63154383,2978.9,2978.8,0.31167186]
[1752547597967,3.52432517,2978.8,2978.2,3.35765818]
[1752547598177,3.52432517,2978.8,2978.3,0.31194797]
[1752547598471,3.52432517,2978.8,2978.4,0.31194797]
[1752547598678,3.35728194,2978.6,2978.5,0.31203396]
[1752547599170,3.35728194,2978.6,2978.5,0.31204095]
[1752547599475,4.73838194,2978.6,2978.5,0.31204095]
[1752547600488,5.54793893,2978.6,2978.5,0.31204095]
[1752547600866,6.09793893,2978.6,2978.5,0.31204095]
[1752547601042,11.33193893,2978.6,2978.5,0.31204095]
[1752547602283,11.33193893,2978.6,2977.9,0.002]
[1752547602284,4.17305836,2978.0,2977.9,0.002]
[1752547602439,9.97439684,2978.0,2977.9,0.002]
[1752547602638,10.98699684,2978.0,2977.9,0.002]
[1752547603167,20.98699684,2978.0,2977.9,1e-08]
[1752547603376,14.74039684,2978.0,2977.9,1e-08]
[1752547603590,20.98699684,2978.0,2977.9,1e-08]
[1752547604250,20.43699684,2978.0,2977.9,1e-08]
[1752547604635,20.98699684,2978.0,2977.9,1e-08]
[1752547605845,20.43699684,2978.0,2977.9,1e-08]
[1752547606044,19.40805836,2978.0,2977.9,1e-08]
[1752547606251,19.87065836,2978.0,2977.9,1e-08]
[1752547607267,20.42065836,2978.0,2977.9,1e-08]
[1752547611270,23.95765836,2978.0,2977.9,1e-08]
[1752547611490,20.42065836,2978.0,2977.9,1e-08]
[1752547612578,3.35931201,2976.8,2976.7,0.002]
[1752547612765,9.57661201,2976.8,2976.7,0.002]
[1752547613577,10.03921201,2976.8,2976.7,0.002]
[1752547613757,9.57661201,2976.8,2976.7,0.002]
[1752547613941,10.03921201,2976.8,2976.7,0.002]
[1752547614272,10.03921201,2976.8,2976.7,0.31422531]
[1752547615571,10.03921201,2976.8,2976.7,0.31386951]
[1752547615775,0.8183,2975.5,2973.4,0.002]
[1752547615946,0.55,2974.5,2973.1,0.17549701]
[1752547616150,3.36406937,2972.6,2972.3,0.25578657]
[1752547616351,0.55,2972.5,2972.4,0.4497]
[1752547616672,0.4626,2973.5,2972.4,2.7582967]
[1752547616870,10.0,2973.6,2972.5,0.4497]
[1752547617049,3.3640584,2972.6,2972.5,0.4497]
[1752547617255,3.36370179,2973.0,2972.5,0.5997]
[1752547617461,9.34197227,2973.7,2972.6,0.03364058]
[1752547617664,3.36306386,2973.5,2972.9,0.7591]
[1752547617867,3.36312177,2973.5,2973.0,0.4497]
[1752547618139,9.34197227,2973.7,2973.1,10.5997]
[1752547618340,10.7723,2974.7,2973.4,3.36315329]
[1752547618652,3.36189169,2974.6,2973.7,3.36281301]
[1752547618869,10.0,2975.0,2973.9,0.8074]
[1752547619069,0.8088,2975.9,2974.1,10.0]
[1752547619257,0.8088,2975.9,2974.8,3.36151549]
[1752547619590,3.36064344,2975.7,2974.9,3.81115587]
[1752547619792,3.36051631,2975.8,2974.9,0.4497]
[1752547619980,1.05598734,2975.9,2974.9,0.4497]
[1752547620289,3.36047017,2975.8,2974.6,0.4497]
[1752547620622,3.36108989,2975.3,2974.3,0.8074]
[1752547620783,10.0,2975.4,2974.6,3.36170362]
[1752547620986,3.36143043,2975.0,2974.3,0.8074]
[1752547621167,10.0,2974.8,2973.8,1.2439]
[1752547621348,1.39784972,2974.7,2973.4,3.81283609]
[1752547621548,3.36220737,2974.3,2973.4,0.5997]
[1752547621799,1.39784972,2974.7,2973.4,0.63333153]
[1752547621800,11.39784972,2974.7,2973.4,0.63333153]
[1752547622008,10.0,2974.5,2973.7,3.36270196]
[1752547622207,10.0,2974.5,2973.5,3.36294252]
[1752547622383,0.44164575,2974.4,2973.4,0.5997]
[1752547622706,0.44164575,2974.4,2973.7,3.36272833]
[1752547622881,3.80366917,2974.4,2973.7,3.36272833]
[1752547623419,3.80366917,2974.4,2973.6,3.36291582]
[1752547623913,3.80366917,2974.4,2973.7,3.36280247]
[1752547624112,0.93524972,2974.3,2973.7,0.4497]
[1752547624317,4.18361812,2975.0,2974.2,3.36215871]
[1752547624613,3.36157642,2974.8,2974.2,3.36215871]
[1752547624795,3.36157642,2974.8,2974.1,3.36233991]
[1752547624971,3.69784399,2974.7,2974.0,0.4497]
[1752547625172,3.69784399,2974.7,2974.0,3.81210138]
[1752547625372,0.33615764,2974.7,2973.6,0.4497]
[1752547625632,10.0,2974.6,2973.7,3.36280982]
[1752547625809,0.168,2974.2,2973.7,3.53080982]
[1752547625978,0.168,2974.2,2973.8,0.4497]
[1752547626178,0.168,2974.2,2973.7,0.168]
[1752547626509,0.168,2973.9,2973.8,0.4497]
[1752547626708,0.168,2974.2,2973.8,0.4497]
[1752547626910,0.168,2974.2,2973.9,0.4497]
[1752547627876,3.36192376,2974.5,2974.0,0.4497]
[1752547628196,3.53008913,2974.4,2974.0,0.4497]
[1752547628398,3.53009598,2974.4,2974.0,0.4497]
[1752547628829,3.36192304,2974.5,2973.7,3.81249973]
[1752547629035,0.168,2974.2,2973.9,0.4497]
[1752547631031,0.168,2974.2,2974.0,0.4457]
[1752547631332,0.16577142,2976.5,2974.0,0.4457]
[1752547631333,10.69092487,2975.4,2974.2,3.36224867]
[1752547631485,0.168,2975.2,2974.7,3.36161514]
[1752547631681,3.78278163,2975.2,2974.8,0.4457]
[1752547631880,3.52918593,2975.2,2974.8,0.4457]
[1752547632120,0.168,2975.2,2974.8,0.4457]
[1752547632803,3.5291385,2975.2,2974.8,0.4457]
[1752547633001,0.168,2975.2,2974.7,0.168]
[1752547633194,3.36176658,2974.7,2974.4,0.6137]
[1752547633716,3.36182799,2974.6,2974.1,1.2123]
[1752547634031,0.168,2974.6,2974.2,0.4457]
[1752547634191,0.168,2974.6,2974.3,0.4457]
[1752547634798,0.168,2974.6,2974.1,4.29694964]
[1752547635001,3.36190956,2974.5,2974.1,0.7666]
[1752547635224,7.67596008,2974.6,2974.1,0.7666]
[1752547635225,0.168,2974.4,2974.2,0.4457]
[1752547635425,7.491,2974.6,2974.4,3.36196231]
[1752547635650,7.314,2975.1,2974.5,0.4457]
[1752547635825,0.168,2974.9,2974.5,3.80751378]
[1752547636142,0.168,2974.9,2974.7,3.36167214]
[1752547636292,7.314,2975.1,2974.7,3.36168353]
[1752547636497,7.314,2975.1,2974.8,0.4457]
[1752547638262,10.67524439,2975.1,2974.8,0.4457]
[1752547638407,3.36151676,2974.9,2974.7,0.168]
[1752547638606,0.168,2974.8,2974.3,0.168]
[1752547639007,7.287,2974.7,2974.3,0.6137]
[1752547639326,10.64874695,2974.7,2974.3,0.6137]
[1752547639527,3.36181139,2974.6,2974.3,0.6137]
[1752547639729,10.64870764,2974.7,2974.3,0.6137]
[1752547640047,3.52995446,2974.5,2974.1,0.7666]
[1752547640228,0.168,2974.5,2974.1,0.7666]
[1752547640707,0.168,2974.5,2974.1,4.57460672]
[1752547640903,0.168,2974.5,2974.2,3.80794714]
[1752547641109,7.265,2974.5,2974.2,0.4457]
[1752547641312,7.265,2974.5,2974.2,0.6137]
[1752547641506,7.265,2974.5,2974.2,3.97587257]
[1752547641743,7.265,2974.5,2974.3,0.4457]
[1752547642042,10.63157524,2974.8,2974.3,3.80779603]
[1752547642242,7.27,2974.8,2974.4,3.80770257]
[1752547642547,7.27,2974.8,2974.5,0.4457]
[1752547642950,7.27,2974.8,2974.5,3.80760769]
[1752547643316,7.27,2974.8,2974.5,0.4457]
[1752547643541,7.27,2974.8,2974.5,3.80760205]
[1752547643729,7.27,2974.8,2974.5,0.4457]
[1752547644130,7.27,2974.8,2974.5,3.80758794]
[1752547644331,3.36118619,2975.2,2974.6,3.80748397]
[1752547644549,10.79628451,2975.1,2974.6,0.6137]
[1752547644714,0.31176923,2975.0,2974.7,0.4457]
[1752547644914,0.31176923,2974.9,2974.7,0.4457]
[1752547645255,7.55176923,2974.8,2974.7,0.4457]
[1752547645614,7.55180604,2974.8,2974.7,0.4457]
[1752547645944,7.24,2974.8,2974.7,0.4457]
[1752547646651,7.55245566,2974.8,2974.7,0.4457]
[1752547646851,0.168,2975.1,2974.7,0.4457]
[1752547647050,7.231,2975.0,2974.8,3.80719453]
[1752547647757,7.231,2975.0,2974.8,0.4457]
[1752547648530,7.231,2975.0,2974.8,3.80725087]
[1752547648855,7.231,2975.0,2974.9,0.4457]
[1752547649957,0.168,2975.1,2974.9,3.80707803]
[1752547650136,7.176,2975.2,2975.0,0.4457]
[1752547650318,0.168,2975.4,2975.2,3.36105586]
[1752547650517,4.12584312,2975.8,2975.2,3.36105586]
[1752547650518,0.168,2975.8,2975.4,4.14562918]
[1752547650718,7.175,2975.7,2975.5,0.4457]
[1752547650966,7.175,2975.6,2975.4,0.7848]
[1752547651267,3.52823978,2976.0,2975.4,4.59139096]
[1752547651268,3.52825654,2976.0,2975.4,4.59139096]
[1752547651568,7.17,2975.7,2975.4,4.59139096]
[1752547651948,7.17,2975.7,2975.4,1.2305]
[1752547652347,7.17,2975.7,2975.4,4.5913721]
[1752547652575,7.17,2975.7,2975.4,1.2305]
[1752547652783,7.17,2975.7,2975.4,4.59138107]
[1752547653780,7.154,2975.6,2975.5,3.80647161]
[1752547653942,7.145,2975.6,2975.5,0.4457]
[1752547654640,3.52825672,2976.0,2975.5,0.4457]
[1752547654841,10.49932946,2975.9,2975.5,0.4457]
[1752547655709,0.168,2976.0,2975.6,0.4457]
[1752547655854,0.001,2976.2,2975.9,3.36032796]
[1752547656177,7.119,2976.1,2975.9,3.52832796]
[1752547656343,7.119,2976.1,2975.9,0.168]
[1752547656853,10.47915923,2976.1,2975.9,0.168]
[1752547657069,8.16701592,2976.1,2975.9,0.168]
[1752547658584,7.119,2976.1,2975.9,0.168]
[1752547659139,10.47911287,2976.1,2975.9,0.168]
[1752547659381,7.119,2976.1,2975.9,0.168]
[1752547660175,7.119,2976.1,2975.9,0.6137]
[1752547660400,7.076,2976.0,2975.9,0.6137]
[1752547660699,7.057,2976.0,2975.9,0.6137]
[1752547663998,0.001,2976.2,2976.1,13.36010214]
[1752547664213,0.001,2976.2,2976.1,13.91010214]
[1752547664366,0.001,2976.2,2976.1,15.14910214]
[1752547665005,1e-08,2976.2,2976.1,15.14910214]
[1752547665163,0.8042,2977.9,2977.0,0.7771]
[1752547665362,7.8342,2977.9,2977.1,0.46518973]
[1752547665612,0.47,2977.8,2976.8,3.35922065]
[1752547665968,3.35866399,2977.4,2976.8,3.35922065]
[1752547666597,3.35885409,2977.3,2976.7,4.56811912]
[1752547666815,7.025,2977.8,2976.7,0.7771]
[1752547667017,7.025,2977.8,2977.2,0.7771]
[1752547667227,7.025,2977.8,2977.5,3.35841309]
[1752547667380,7.025,2977.8,2977.6,3.67089751]
[1752547667573,0.04,2977.9,2977.8,3.35818389]
[1752547667773,0.022612,2977.9,2977.8,4.44785431]
[1752547668011,0.022612,2977.9,2977.8,5.70658755]